fUSD/lending_fUSD_20260608
["ID","MTS","AMOUNT","RATE_DAILY","PERIOD"]
[424418480,1780861832000,-942.764,0.000143,2]
[424418477,1780861832000,-166.66,0.00014128,2]
[424418479,1780861832000,-166.66,0.0001427,2]
[424418484,1780861832000,-9999.99,0.00014301,2]
[424418499,1780861833000,-188.96467113,0.00014799,2]
[424418511,1780861833000,-500.0,0.00014799,2]
[424418512,1780861833000,-500.0,0.00014799,2]
[424418509,1780861833000,-500.0,0.00014799,2]
[424418510,1780861833000,-500.0,0.00014799,2]
[424418501,1780861833000,-500.0,0.00014799,2]
[424418507,1780861833000,-500.0,0.00014799,2]
[424418506,1780861833000,-500.0,0.00014799,2]
[424418505,1780861833000,-500.0,0.00014799,2]
[424418508,1780861833000,-500.0,0.00014799,2]
[424418504,1780861833000,-221.71066135,0.00014799,2]
[424418500,1780861833000,-500.0,0.00014799,2]
[424418520,1780861833000,-172377.82437161,0.000148,2]
[424418502,1780861833000,-364.7988578,0.00014799,2]
[424418503,1780861833000,-150.88931315,0.00014799,2]
[424418516,1780861833000,-500.0,0.00014799,2]
[424418513,1780861833000,-500.0,0.00014799,2]
[424418514,1780861833000,-500.0,0.00014799,2]
[424418532,1780861833000,-3018.878698,0.000148,2]
[424418529,1780861833000,-500.0,0.00014766,2]
[424418528,1780861833000,-500.0,0.00014766,2]
[424418527,1780861833000,-500.0,0.00014766,2]
[424418526,1780861833000,-368.52,0.000148,2]
[424418523,1780861833000,-168.6943846,0.00014766,2]
[424418530,1780861833000,-3430.0309368,0.000148,2]
[424418524,1780861833000,-331.3056154,0.00014766,2]
[424418521,1780861833000,-260.99829995,0.00014766,2]
[424418522,1780861833000,-294.51442191,0.00014766,2]
[424418517,1780861833000,-4368.7972,0.000148,2]
[424418519,1780861833000,-91359.21301706,0.000148,2]
[424418518,1780861833000,-2000.0,0.000148,2]
[424418531,1780861833000,-1598.104601,0.000148,2]
[424418525,1780861833000,-9.56780341,0.000148,2]
[424418515,1780861833000,-500.0,0.00014799,2]
[424418533,1780861838000,-265.15938216,0.00014766,2]
[424418737,1780861840000,-234.84061784,0.00014766,2]
[424418745,1780861840000,-500.0,0.00014766,2]
[424418743,1780861840000,-500.0,0.00014766,2]
[424418739,1780861840000,-500.0,0.00014766,2]
[424418747,1780861840000,-500.0,0.00014766,2]
[424418753,1780861840000,-500.0,0.00014766,2]
[424418749,1780861840000,-500.0,0.00014766,2]
[424418755,1780861840000,-500.0,0.00014766,2]
[424418761,1780861840000,-500.0,0.00014766,2]
[424418751,1780861840000,-500.0,0.00014766,2]
[424418760,1780861840000,-500.0,0.00014766,2]
[424418763,1780861840000,-500.0,0.00014766,2]
[424418765,1780861840000,-500.0,0.00014766,2]
[424418768,1780861840000,-500.0,0.00014766,2]
[424418741,1780861840000,-500.0,0.00014766,2]
[424418770,1780861840000,-500.0,0.00014766,2]
[424418757,1780861840000,-500.0,0.00014766,2]
[424418774,1780861840000,-500.0,0.00014766,2]
[424418772,1780861840000,-500.0,0.00014766,2]
[424418806,1780861840000,-2246.16436236,0.000148,2]
[424418804,1780861840000,-1915.48566994,0.000148,2]
[424418800,1780861840000,-500.0,0.00014766,2]
[424418802,1780861840000,-500.0,0.00014766,2]
[424418798,1780861840000,-421.63723994,0.00014766,2]
[424418794,1780861840000,-500.0,0.00014766,2]
[424418796,1780861840000,-500.0,0.00014766,2]
[424418784,1780861840000,-500.0,0.00014766,2]
[424418782,1780861840000,-500.0,0.00014766,2]
[424418786,1780861840000,-500.0,0.00014766,2]
[424418792,1780861840000,-500.0,0.00014766,2]
[424418789,1780861840000,-500.0,0.00014766,2]
[424418776,1780861840000,-500.0,0.00014766,2]
[424418780,1780861840000,-500.0,0.00014766,2]
[424418778,1780861840000,-500.0,0.00014766,2]
[424418788,1780861840000,-500.0,0.00014766,2]
[424419120,1780861843000,-1036.65328089,0.000148,2]
[424419119,1780861843000,-629.55910495,0.000148,2]
[424419161,1780861846000,-15125.25495983,0.000148,2]
[424419160,1780861846000,-1841.84994,0.000148,2]
[424419241,1780863032000,-299.99,0.00013973,2]
[424419237,1780863032000,-166.66,0.00013836,2]
[424419235,1780863032000,-200.0,0.00013699,2]
[424419229,1780863032000,-500.108,0.00013468,2]
[424419221,1780863032000,-115.22724402,0.00013367,2]
[424419233,1780863032000,-166.66,0.00013699,2]
[424419225,1780863032000,-33.45926761,0.00013412,2]
[424419231,1780863032000,-812.87,0.00013625,2]
[424419223,1780863032000,-581.29275598,0.00013367,2]
[424419219,1780863032000,-434.29,0.00013335,2]
[424419217,1780863032000,-150.0,0.00013312,2]
[424419216,1780863032000,-159.13,0.00013304,2]
[424419227,1780863032000,-116.54073239,0.00013412,2]
[424419258,1780863032000,-289.39232685,0.00013973,2]
[424419239,1780863032000,-166.66,0.00013973,2]
[424419256,1780863032000,-150.99,0.00013973,2]
[424419253,1780863032000,-3987.73541938,0.00013973,2]
[424419321,1780863032000,-340.48204018,0.000141,2]
[424419303,1780863032000,-20234.48710174,0.000141,2]
[424419277,1780863032000,-446.36039148,0.000141,2]
[424419280,1780863032000,-1466.16851797,0.000141,2]
[424419274,1780863032000,-9400.0,0.000141,2]
[424419266,1780863032000,-150.0,0.00014001,2]
[424419243,1780863032000,-2202.85405143,0.00013973,2]
[424419264,1780863032000,-250.0,0.00014,2]
[424419262,1780863032000,-163.62,0.00013973,2]
[424419272,1780863032000,-42425.42473875,0.000141,2]
[424419270,1780863032000,-960.98670568,0.0001409,2]
[424419260,1780863032000,-5256.09767315,0.00013973,2]
[424419268,1780863032000,-227.98123206,0.00014001,2]
[424419245,1780863032000,-3809.40052919,0.00013973,2]
[424419324,1780863037000,-504.5485674,0.000141,2]
[424419323,1780863037000,-215.83393831,0.00014042,2]
[424419325,1780863037000,-1179.76918503,0.000141,2]
[424419603,1780863043000,-423.95293686,0.00014099,2]
[424419601,1780863043000,-164.56348775,0.00014099,2]
[424419602,1780863043000,-44.83432961,0.00014099,2]
[424419599,1780863043000,-105.00789782,0.00014099,2]
[424419598,1780863043000,-500.0,0.00014099,2]
[424419597,1780863043000,-155.19746294,0.00014099,2]
[424419596,1780863043000,-500.0,0.00014099,2]
[424419600,1780863043000,-350.35130264,0.00014099,2]
[424419617,1780863045000,-84.19721148,0.00014099,2]
[424419616,1780863045000,-500.0,0.00014099,2]
[424419615,1780863045000,-500.0,0.00014099,2]
[424419614,1780863045000,-31.21273353,0.00014099,2]
[424419620,1780863127000,24000.0,7.945e-05,2]
[424419627,1780863869000,150.0,7.707e-05,2]
[424419632,1780864024000,244.49186005,8.104e-05,7]
[424419638,1780864162000,295.36560249,7.942e-05,2]
[424419636,1780864162000,2.0,7.942e-05,2]
[424419637,1780864162000,199.25,7.942e-05,2]
[424419639,1780864162000,123.35593259,7.942e-05,2]
[424419640,1780864207000,400.0,0.00029836,120]
[424419651,1780864231000,-250.0,8.74e-05,2]
[424419648,1780864231000,-300.0,8.01e-05,2]
[424419647,1780864231000,-150.0,7.978e-05,2]
[424419650,1780864231000,-215.83393831,8.026e-05,2]
[424419649,1780864231000,-4077.80458675,8.011e-05,2]
[424419653,1780864231000,-500.0,8.74e-05,2]
[424419656,1780864231000,-208.0,9.989e-05,2]
[424419654,1780864231000,-208.0,9.989e-05,2]
[424419652,1780864231000,-250.0,8.74e-05,2]
[424419644,1780864231000,-2392.63152663,7.945e-05,2]
[424419645,1780864231000,-5196.26267237,7.945e-05,2]
[424419655,1780864231000,-208.0,9.989e-05,2]
[424419646,1780864231000,-250.0,7.962e-05,2]
[424419659,1780864231000,-1322.54752309,0.00010905,2]
[424419666,1780864231000,-292.41,0.00012387,2]
[424419669,1780864231000,-187.03,0.00012867,2]
[424419670,1780864231000,-210.16,0.00012893,2]
[424419660,1780864231000,-26945.0,0.00011591,2]
[424419662,1780864231000,-471.61927824,0.00011705,2]
[424419668,1780864231000,-290.9054081,0.00012849,2]
[424419661,1780864231000,-166.16718542,0.00011705,2]
[424419663,1780864231000,-577.66298142,0.00011705,2]
[424419657,1780864231000,-7768.30230802,0.000107,2]
[424419667,1780864231000,-150.0,0.00012504,2]
[424419658,1780864231000,-250.0,0.00010869,2]
[424419665,1780864231000,-2279.67219625,0.0001219,2]
[424419705,1780864232000,-166.66,0.00013836,2]
[424419690,1780864232000,-502.0,0.00013644,2]
[424419697,1780864232000,-150.0,0.00013712,2]
[424419706,1780864232000,-19520.62793801,0.00013837,2]
[424419707,1780864232000,-30624.98422201,0.00013837,2]
[424419698,1780864232000,-150.60901229,0.00013758,2]
[424419688,1780864232000,-150.0,0.00013624,2]
[424419699,1780864232000,-186.18115721,0.00013758,2]
[424419720,1780864232000,-500.0,0.00013898,2]
[424419704,1780864232000,-4700.0,0.000138,5]
[424419701,1780864232000,-150.52055043,0.00013758,2]
[424419700,1780864232000,-456.89498597,0.00013758,2]
[424419702,1780864232000,-150.0,0.0001376,2]
[424419703,1780864232000,-150.0,0.00013787,2]
[424419717,1780864232000,-500.0,0.00013898,2]
[424419719,1780864232000,-500.0,0.00013898,2]
[424419692,1780864232000,-337.44,0.00013699,2]
[424419696,1780864232000,-3500.0,0.000137,5]
[424419686,1780864232000,-255.0,0.00013591,2]
[424419679,1780864232000,-150.00000001,0.00013488,2]
[424419687,1780864232000,-2300.0,0.000136,4]
[424419678,1780864232000,-150.0,0.00013488,2]
[424419672,1780864232000,-199.5,0.00012978,2]
[424419681,1780864232000,-150.0,0.00013488,2]
[424419674,1780864232000,-650.29,0.0001299,2]
[424419714,1780864232000,-500.0,0.00013898,2]
[424419680,1780864232000,-150.0,0.00013488,2]
[424419677,1780864232000,-150.0,0.00013488,2]
[424419676,1780864232000,-171.238,0.0001337,2]
[424419675,1780864232000,-166.66,0.00013354,2]
[424419682,1780864232000,-150.0,0.00013488,2]
[424419671,1780864232000,-938.63,0.00012893,2]
[424419684,1780864232000,-1500.0,0.00013541,2]
[424419695,1780864232000,-329.63798444,0.00013699,2]
[424419683,1780864232000,-1100.0,0.000135,4]
[424419694,1780864232000,-3201.66,0.00013699,2]
[424419685,1780864232000,-150.0,0.00013563,2]
[424419691,1780864232000,-200.0,0.00013699,2]
[424419689,1780864232000,-150.0,0.00013638,2]
[424419718,1780864232000,-500.0,0.00013898,2]
[424419693,1780864232000,-166.66,0.00013699,2]
[424419710,1780864232000,-150.0,0.00013862,2]
[424419737,1780864232000,-500.0,0.000139,2]
[424419738,1780864232000,-740605.16898715,0.000139,2]
[424419739,1780864232000,-52343.71188811,0.000139,2]
[424419735,1780864232000,-500.0,0.000139,2]
[424419744,1780864232000,-781.44564402,0.000139,2]
[424419740,1780864232000,-665.01154194,0.000139,2]
[424419741,1780864232000,-1374.34240517,0.000139,2]
[424419743,1780864232000,-3563.51531145,0.000139,2]
[424419736,1780864232000,-500.0,0.000139,2]
[424419742,1780864232000,-1847.1,0.000139,2]
[424419747,1780864232000,-7053.07254739,0.000139,2]
[424419746,1780864232000,-500.0,0.00013898,2]
[424419749,1780864232000,-500.0,0.00013898,2]
[424419750,1780864232000,-165.7542,0.00013898,2]
[424419753,1780864232000,-16102.46562037,0.000139,2]
[424419751,1780864232000,-334.2458,0.00013898,2]
[424419708,1780864232000,-211.72889114,0.00013859,2]
[424419752,1780864232000,-1734.13998492,0.000139,2]
[424419745,1780864232000,-500.0,0.00013898,2]
[424419728,1780864232000,-559.11040526,0.00013899,2]
[424419748,1780864232000,-500.0,0.00013898,2]
[424419727,1780864232000,-181.99826549,0.00013899,2]
[424419711,1780864232000,-169.599922,0.00013891,2]
[424419723,1780864232000,-500.0,0.00013899,2]
[424419716,1780864232000,-500.0,0.00013898,2]
[424419721,1780864232000,-500.0,0.00013899,2]
[424419709,1780864232000,-4444.06714417,0.00013859,2]
[424419712,1780864232000,-150.0,0.00013896,2]
[424419715,1780864232000,-500.0,0.00013898,2]
[424419722,1780864232000,-500.0,0.00013899,2]
[424419725,1780864232000,-613.76538141,0.00013899,2]
[424419713,1780864232000,-500.0,0.00013898,2]
[424419726,1780864232000,-500.0,0.00013899,2]
[424419734,1780864232000,-5800.0,0.000139,5]
[424419731,1780864232000,-170.2893677,0.00013899,2]
[424419729,1780864232000,-500.0,0.00013899,2]
[424419730,1780864232000,-184.44359579,0.00013899,2]
[424419732,1780864232000,-327.54341167,0.00013899,2]
[424419724,1780864232000,-500.0,0.00013899,2]
[424419733,1780864232000,-500.0,0.00013899,2]
[424419754,1780864235000,580.43,0.00030117,120]
[424419758,1780864237000,-196.13311697,0.00013837,2]
[424419760,1780864237000,-133.89143393,0.0001389,2]
[424419757,1780864237000,-580.43,0.00012363,2]
[424419759,1780864237000,-523.98200415,0.00013837,2]
[424419829,1780864238000,-150.0,0.00013937,2]
[424419820,1780864238000,-500.0,0.00013898,2]
[424419824,1780864238000,-673930.02606948,0.000139,2]
[424419827,1780864238000,-757980.5891,0.00013901,2]
[424419801,1780864238000,-500.0,0.00013898,2]
[424419816,1780864238000,-500.0,0.00013898,2]
[424419814,1780864238000,-500.0,0.00013898,2]
[424419799,1780864238000,-605.37302556,0.00013898,2]
[424419822,1780864238000,-500.0,0.00013898,2]
[424419803,1780864238000,-500.0,0.00013898,2]
[424419818,1780864238000,-500.0,0.00013898,2]
[424419831,1780864238000,-19520.62793796,0.00013955,2]
[424419848,1780864238000,-2500.0,0.00014,2]
[424419839,1780864238000,-237256.24056528,0.0001396,2]
[424419841,1780864238000,-166.66,0.00013973,2]
[424419833,1780864238000,-30624.98422195,0.00013955,2]
[424419835,1780864238000,-500.0,0.00013959,2]
[424419843,1780864238000,-150.0,0.00013987,2]
[424419846,1780864238000,-250.0,0.00014,2]
[424419845,1780864238000,-14270.34142765,0.0001399,2]
[424419853,1780864238000,-150.0,0.00014033,2]
[424419851,1780864238000,-150.0,0.00014012,2]
[424419852,1780864238000,-201.857967,0.00014023,2]
[424419847,1780864238000,-2520.7786,0.00014,2]
[424419812,1780864238000,-500.0,0.00013898,2]
[424419849,1780864238000,-256.02394077,0.00014001,2]
[424419837,1780864238000,-203.221661,0.0001396,2]
[424419810,1780864238000,-500.0,0.00013898,2]
[424419768,1780864238000,-500.0,0.00013898,2]
[424419805,1780864238000,-500.0,0.00013898,2]
[424419850,1780864238000,-4018.14360044,0.00014001,2]
[424419761,1780864238000,-1289.28411591,0.0001389,2]
[424419762,1780864238000,-500.0,0.00013898,2]
[424419764,1780864238000,-500.0,0.00013898,2]
[424419774,1780864238000,-500.0,0.00013898,2]
[424419763,1780864238000,-500.0,0.00013898,2]
[424419767,1780864238000,-500.0,0.00013898,2]
[424419765,1780864238000,-500.0,0.00013898,2]
[424419766,1780864238000,-500.0,0.00013898,2]
[424419771,1780864238000,-500.0,0.00013898,2]
[424419773,1780864238000,-500.0,0.00013898,2]
[424419769,1780864238000,-500.0,0.00013898,2]
[424419770,1780864238000,-500.0,0.00013898,2]
[424419772,1780864238000,-500.0,0.00013898,2]
[424419775,1780864238000,-500.0,0.00013898,2]
[424419776,1780864238000,-500.0,0.00013898,2]
[424419789,1780864238000,-500.0,0.00013898,2]
[424419787,1780864238000,-500.0,0.00013898,2]
[424419791,1780864238000,-500.0,0.00013898,2]
[424419779,1780864238000,-500.0,0.00013898,2]
[424419778,1780864238000,-500.0,0.00013898,2]
[424419777,1780864238000,-500.0,0.00013898,2]
[424419793,1780864238000,-500.0,0.00013898,2]
[424419783,1780864238000,-500.0,0.00013898,2]
[424419785,1780864238000,-454.70715181,0.00013898,2]
[424419781,1780864238000,-500.0,0.00013898,2]
[424419795,1780864238000,-500.0,0.00013898,2]
[424419807,1780864238000,-500.0,0.00013898,2]
[424419854,1780864238000,-456.89498597,0.00014069,2]
[424419893,1780864238000,-23245.3888,0.00014101,2]
[424419855,1780864238000,-19520.62793796,0.00014073,2]
[424419889,1780864238000,-231.17,0.00014099,2]
[424419882,1780864238000,-500.0,0.00014099,2]
[424419892,1780864238000,-359.60882325,0.00014101,10]
[424419891,1780864238000,-200.0,0.000141,2]
[424419886,1780864238000,-500.0,0.00014099,2]
[424419887,1780864238000,-500.0,0.00014099,2]
[424419895,1780864238000,-166.66,0.0001411,2]
[424419897,1780864238000,-150.0,0.00014162,2]
[424419896,1780864238000,-187.03,0.00014153,2]
[424419899,1780864238000,-150.0,0.00014169,2]
[424419906,1780864238000,-3681.0396959,0.00014174,2]
[424419898,1780864238000,-1423.17554984,0.00014164,2]
[424419903,1780864238000,-500.0,0.00014173,2]
[424419901,1780864238000,-500.0,0.00014173,2]
[424419900,1780864238000,-500.0,0.00014173,2]
[424419904,1780864238000,-500.0,0.00014173,2]
[424419905,1780864238000,-500.0,0.00014173,2]
[424419908,1780864238000,-214722.7851277,0.00014174,2]
[424419907,1780864238000,-9741.9954776,0.00014174,2]
[424419909,1780864238000,-2773.9673054,0.00014174,2]
[424419910,1780864238000,-1155313.7342392,0.00014174,2]
[424419915,1780864238000,-313.86713,0.00014174,2]
[424419913,1780864238000,-313.86713,0.00014174,2]
[424419914,1780864238000,-313.86713,0.00014174,2]
[424419912,1780864238000,-177.50346,0.00014174,2]
[424419911,1780864238000,-151.0,0.00014174,2]
[424419856,1780864238000,-30624.98422195,0.00014073,2]
[424419884,1780864238000,-500.0,0.00014099,2]
[424419890,1780864238000,-200.0,0.000141,2]
[424419902,1780864238000,-500.0,0.00014173,2]
[424419894,1780864238000,-2000.0,0.00014101,2]
[424419857,1780864238000,-150.0,0.00014087,2]
[424419888,1780864238000,-500.0,0.00014099,2]
[424419859,1780864238000,-151.0,0.00014097,2]
[424419865,1780864238000,-500.0,0.00014099,2]
[424419866,1780864238000,-500.0,0.00014099,2]
[424419861,1780864238000,-500.0,0.00014099,2]
[424419867,1780864238000,-264.70591973,0.00014099,2]
[424419864,1780864238000,-556.72552336,0.00014099,2]
[424419863,1780864238000,-500.0,0.00014099,2]
[424419862,1780864238000,-500.0,0.00014099,2]
[424419858,1780864238000,-1555.5,0.00014089,2]
[424419868,1780864238000,-150.0,0.00014099,2]
[424419869,1780864238000,-500.0,0.00014099,2]
[424419870,1780864238000,-500.0,0.00014099,2]
[424419860,1780864238000,-1000.0,0.00014099,2]
[424419883,1780864238000,-500.0,0.00014099,2]
[424419885,1780864238000,-500.0,0.00014099,2]
[424419871,1780864238000,-500.0,0.00014099,2]
[424419876,1780864238000,-500.0,0.00014099,2]
[424419878,1780864238000,-500.0,0.00014099,2]
[424419880,1780864238000,-500.0,0.00014099,2]
[424419874,1780864238000,-500.0,0.00014099,2]
[424419877,1780864238000,-500.0,0.00014099,2]
[424419879,1780864238000,-500.0,0.00014099,2]
[424419873,1780864238000,-500.0,0.00014099,2]
[424419872,1780864238000,-500.0,0.00014099,2]
[424419881,1780864238000,-500.0,0.00014099,2]
[424419875,1780864238000,-500.0,0.00014099,2]
[424419955,1780864239000,-150.0,0.00014305,2]
[424419960,1780864239000,-456.89498597,0.00014379,2]
[424419958,1780864239000,-150.0,0.00014312,2]
[424419954,1780864239000,-500.0,0.000143,2]
[424419953,1780864239000,-166.66,0.00014247,2]
[424419950,1780864239000,-150.0,0.00014237,2]
[424419957,1780864239000,-30624.98422195,0.00014309,2]
[424419951,1780864239000,-200.0,0.00014241,2]
[424419956,1780864239000,-19520.62793796,0.00014309,2]
[424419949,1780864239000,-150.0,0.00014237,2]
[424419961,1780864239000,-4444.06714415,0.0001438,2]
[424419952,1780864239000,-200.0,0.00014241,2]
[424419962,1780864239000,-200.0,0.00014383,2]
[424419979,1780864239000,-200.0,0.00014527,2]
[424419976,1780864239000,-150.0,0.00014462,2]
[424419974,1780864239000,-150.0,0.00014441,2]
[424419963,1780864239000,-200.0,0.00014383,2]
[424419959,1780864239000,-720.11512111,0.00014369,2]
[424419965,1780864239000,-150.0,0.00014387,2]
[424419964,1780864239000,-166.66,0.00014384,2]
[424419968,1780864239000,-19520.62793796,0.00014428,2]
[424419966,1780864239000,-350.0,0.00014407,3]
[424419980,1780864239000,-200.0,0.00014527,2]
[424419978,1780864239000,-350.0,0.00014526,2]
[424419981,1780864239000,-150.0,0.00014537,2]
[424419977,1780864239000,-150.0,0.00014487,2]
[424419947,1780864239000,-500.0,0.00014201,2]
[424419971,1780864239000,-30624.98422195,0.00014428,2]
[424419985,1780864239000,-150.0,0.00014578,2]
[424419919,1780864239000,-151.0,0.00014174,2]
[424419945,1780864239000,-799.3,0.00014201,2]
[424419918,1780864239000,-151.0,0.00014174,2]
[424419916,1780864239000,-313.86713,0.00014174,2]
[424419917,1780864239000,-151.0,0.00014174,2]
[424419921,1780864239000,-30624.98422195,0.00014191,2]
[424419923,1780864239000,-500.0,0.00014201,2]
[424419920,1780864239000,-19520.62793796,0.00014191,2]
[424419922,1780864239000,-500.0,0.00014201,2]
[424419925,1780864239000,-500.0,0.00014201,2]
[424419928,1780864239000,-500.0,0.00014201,2]
[424419932,1780864239000,-500.0,0.00014201,2]
[424419924,1780864239000,-500.0,0.00014201,2]
[424419926,1780864239000,-500.0,0.00014201,2]
[424419927,1780864239000,-500.0,0.00014201,2]
[424419946,1780864239000,-799.3,0.00014201,2]
[424419931,1780864239000,-500.0,0.00014201,2]
[424419929,1780864239000,-500.0,0.00014201,2]
[424419934,1780864239000,-500.0,0.00014201,2]
[424419944,1780864239000,-799.3,0.00014201,2]
[424419935,1780864239000,-500.0,0.00014201,2]
[424419933,1780864239000,-500.0,0.00014201,2]
[424419936,1780864239000,-500.0,0.00014201,2]
[424419937,1780864239000,-500.0,0.00014201,2]
[424419941,1780864239000,-799.3,0.00014201,2]
[424419939,1780864239000,-500.0,0.00014201,2]
[424419938,1780864239000,-500.0,0.00014201,2]
[424419943,1780864239000,-799.3,0.00014201,2]
[424419942,1780864239000,-799.3,0.00014201,2]
[424419940,1780864239000,-500.0,0.00014201,2]
[424419930,1780864239000,-500.0,0.00014201,2]
[424419988,1780864239000,-1613.0535,0.00014637,2]
[424419948,1780864239000,-198.117081,0.0001421,2]
[424419987,1780864239000,-650.29,0.00014614,2]
[424420017,1780864239000,-500.0,0.00014786,2]
[424420028,1780864239000,-799.3,0.00014786,2]
[424420022,1780864239000,-500.0,0.00014786,2]
[424420026,1780864239000,-500.0,0.00014786,2]
[424420018,1780864239000,-500.0,0.00014786,2]
[424420024,1780864239000,-500.0,0.00014786,2]
[424420020,1780864239000,-500.0,0.00014786,2]
[424420019,1780864239000,-500.0,0.00014786,2]
[424420025,1780864239000,-500.0,0.00014786,2]
[424420029,1780864239000,-799.3,0.00014786,2]
[424420031,1780864239000,-799.3,0.00014786,2]
[424420032,1780864239000,-799.3,0.00014786,2]
[424420033,1780864239000,-799.3,0.00014786,2]
[424420016,1780864239000,-500.0,0.00014786,2]
[424420030,1780864239000,-799.3,0.00014786,2]
[424420034,1780864239000,-799.3,0.00014786,2]
[424420037,1780864239000,-200.0,0.000148,2]
[424420039,1780864239000,-1100.0,0.000148,5]
[424420036,1780864239000,-151.0,0.000148,2]
[424420038,1780864239000,-200.0,0.000148,2]
[424420040,1780864239000,-150.0,0.00014836,2]
[424420042,1780864239000,-350.0,0.00014853,2]
[424420041,1780864239000,-150.0,0.0001485,2]
[424420044,1780864239000,-500.0,0.00014886,2]
[424420046,1780864239000,-500.0,0.00014886,4]
[424420043,1780864239000,-361.0,0.00014877,2]
[424420047,1780864239000,-500.0,0.00014899,2]
[424419984,1780864239000,-336.16585107,0.00014549,2]
[424420035,1780864239000,-799.3,0.00014786,2]
[424420027,1780864239000,-501.10603348,0.00014786,2]
[424420045,1780864239000,-500.0,0.00014886,3]
[424420013,1780864239000,-500.0,0.00014786,2]
[424420009,1780864239000,-500.0,0.00014786,2]
[424419982,1780864239000,-19520.62793796,0.00014546,2]
[424419983,1780864239000,-30624.98422195,0.00014546,2]
[424419986,1780864239000,-150.0,0.00014612,2]
[424420001,1780864239000,-150.0,0.00014762,2]
[424419990,1780864239000,-19520.62793796,0.00014664,2]
[424419991,1780864239000,-30624.98422195,0.00014664,2]
[424419992,1780864239000,-200.0,0.00014673,2]
[424420002,1780864239000,-6053.0,0.00014767,2]
[424419993,1780864239000,-200.0,0.00014673,2]
[424419994,1780864239000,-150.0,0.00014687,2]
[424419995,1780864239000,-489.75002512,0.00014687,2]
[424419998,1780864239000,-1100.0,0.000147,5]
[424419999,1780864239000,-239.7392155,0.000147,10]
[424419989,1780864239000,-350.0,0.00014659,2]
[424419997,1780864239000,-456.89498597,0.0001469,2]
[424420015,1780864239000,-500.0,0.00014786,2]
[424420011,1780864239000,-500.0,0.00014786,2]
[424420014,1780864239000,-500.0,0.00014786,2]
[424420005,1780864239000,-30624.98422195,0.00014782,2]
[424420000,1780864239000,-150.0,0.00014714,2]
[424420010,1780864239000,-500.0,0.00014786,2]
[424420012,1780864239000,-500.0,0.00014786,2]
[424420008,1780864239000,-500.0,0.00014786,2]
[424420006,1780864239000,-151.0,0.00014784,2]
[424420007,1780864239000,-151.0,0.00014784,2]
[424420003,1780864239000,-433.0,0.00014779,2]
[424419996,1780864239000,-10000.0,0.00014687,2]
[424420004,1780864239000,-19520.62793796,0.00014782,2]
[424420094,1780864240000,-500.0,0.00014999,2]
[424420095,1780864240000,-500.0,0.00014999,2]
[424420088,1780864240000,-799.3,0.00014999,2]
[424420084,1780864240000,-799.3,0.00014999,2]
[424420081,1780864240000,-799.3,0.00014999,2]
[424420079,1780864240000,-486.01130922,0.00014999,18]
[424420078,1780864240000,-500.0,0.00014999,17]
[424420082,1780864240000,-799.3,0.00014999,2]
[424420083,1780864240000,-799.3,0.00014999,2]
[424420086,1780864240000,-799.3,0.00014999,2]
[424420080,1780864240000,-799.3,0.00014999,2]